lending/lending_fUSD_20240507
["ID","MTS","AMOUNT","RATE_DAILY","PERIOD"]
[326549214,1715103046100,-1750.84164224,0.00023783,2]
[326549215,1715103046111,-150.0,0.000239,4]
[326549216,1715103046122,-500.0,0.00024,2]
[326549217,1715103046133,-432.36004694,0.00024,2]
[326549218,1715103046144,-386.0,0.00024,12]
[326549219,1715103046156,-500.0,0.00024043,2]
[326549220,1715103046167,-500.0,0.00024052,2]
[326549221,1715103046178,-500.0,0.00024061,2]
[326549222,1715103046189,-500.0,0.0002407,2]
[326549223,1715103046198,-500.0,0.00024079,2]
[326549224,1715103046208,-500.0,0.00024087,2]
[326549225,1715103046217,-500.0,0.00024096,2]
[326549226,1715103046227,-500.0,0.00024105,2]
[326549227,1715103046237,-500.0,0.00024105,2]
[326549228,1715103046247,-500.0,0.00024114,2]
[326549229,1715103046257,-500.0,0.00024123,2]
[326549230,1715103046266,-500.0,0.00024131,2]
[326549231,1715103046275,-500.0,0.0002414,2]
[326549232,1715103046284,-500.0,0.00024149,2]
[326549233,1715103046295,-500.0,0.00024158,2]
[326549234,1715103046304,-177.0,0.00024164,2]
[326549235,1715103046314,-500.0,0.00024167,2]
[326549236,1715103046324,-500.0,0.00024167,2]
[326549237,1715103046335,-500.0,0.00024175,2]
[326549238,1715103046345,-500.0,0.00024184,2]
[326549239,1715103046354,-500.0,0.00024184,2]
[326549240,1715103046365,-500.0,0.00024193,2]
[326549241,1715103046374,-500.0,0.00024193,2]
[326549242,1715103046384,-500.0,0.00024202,2]
[326549243,1715103046393,-500.0,0.00024211,2]
[326549244,1715103046403,-500.0,0.00024219,2]
[326549245,1715103046413,-500.0,0.00024228,2]
[326549246,1715103046423,-180.0,0.0002423,2]
[326549247,1715103046433,-500.0,0.00024237,2]
[326549248,1715103046443,-995.31,0.0002424,2]
[326549249,1715103046907,-500.0,0.00024246,2]
[326549250,1715103046928,-500.0,0.00024255,2]
[326549251,1715103046950,-500.0,0.00024255,2]
[326549252,1715103046963,-500.0,0.00024263,2]
[326549253,1715103046973,-500.0,0.00024272,2]
[326549254,1715103046982,-523.05,0.0002428,2]
[326549255,1715103046992,-150.0,0.0002428,2]
[326549256,1715103047002,-523.05,0.0002428,2]
[326549257,1715103047012,-351.14,0.0002428,2]
[326549258,1715103047022,-500.0,0.00024281,2]
[326549259,1715103047032,-500.0,0.0002429,2]
[326549260,1715103047042,-500.0,0.00024299,2]
[326549261,1715103047051,-500.0,0.00024307,2]
[326549262,1715103047061,-500.0,0.00024316,2]
[326549263,1715103047071,-500.0,0.00024325,2]
[326549264,1715103047081,-500.0,0.00024325,2]
[326549265,1715103047090,-150.0,0.000244,4]
[326549266,1715103047100,-1750.84164224,0.00024411,2]
[326549267,1715103047109,-386.0,0.000245,12]
[326549269,1715103047119,-193.7616964,0.00024551,2]
[326549270,1715103047129,-190.35446174,0.00024555,2]
[326549272,1715103047138,-14734.15259759,0.00024555,2]
[326549275,1715103047148,-518.1901474,0.00024555,2]
[326549278,1715103047157,-2789.96051141,0.00024578,10]
[326549280,1715103047167,-8714.84510345,0.000246,3]
[326549281,1715103047177,-1900.0,0.000246,8]
[326549282,1715103047186,-150.5,0.00024627,15]
[326549283,1715103047196,-150.0,0.0002463,4]
[326549284,1715103047206,-254.32148393,0.0002463,4]
[326549285,1715103047229,-193.91209725,0.0002463,4]
[326549286,1715103047250,-150.5,0.00024637,15]
[326549287,1715103047274,-151.0,0.0002464,2]
[326549288,1715103047296,-168.32649072,0.00024644,2]
[326549289,1715103047318,-151.0,0.00024645,2]
[326549290,1715103047346,-151.0,0.00024645,2]
[326549291,1715103047373,-151.0,0.00024645,2]
[326549292,1715103047394,-151.0,0.00024645,2]
[326549293,1715103047414,-151.0,0.00024646,2]
[326549294,1715103047430,-151.0,0.00024646,2]
[326549295,1715103047439,-150.5,0.00024647,15]
[326549296,1715103047448,-76293.56736562,0.0002465,2]
[326549297,1715103048883,-155.0,0.00021999,2]
[326549298,1715103048893,-715.541138,0.000239,2]
[326549299,1715103048903,-863.71168615,0.0002465,2]
[326549300,1715103048915,-634.32930634,0.0002465,2]
[326549301,1715103048926,-5392.90398899,0.0002465,2]
[326549302,1715103048938,-459.4508895,0.0002465,2]
[326549303,1715103048949,-117638.27104169,0.0002465,2]
[326549304,1715103048959,-267.89721336,0.00024651,2]
[326549305,1715103048968,-2415.91543897,0.00024652,2]
[326549306,1715103048977,-240.82859372,0.00024653,2]
[326549307,1715103048987,-155.42735299,0.00024653,2]
[326549308,1715103048996,-307.29266954,0.00024654,2]
[326549309,1715103049006,-447046.28969171,0.00024654,2]
[326549310,1715103049015,-367693.0391362,0.00024655,2]
[326549311,1715103049026,-939.83290137,0.00024655,2]
[326549312,1715103049037,-584.74,0.00024655,2]
[326549313,1715103049049,-335.60142443,0.00024655,2]
[326549314,1715103049060,-11262.44589035,0.00024655,2]
[326549315,1715103049072,-31471.5,0.00024655,2]
[326549327,1715104235470,-155.0,0.00012599,2]
[326549331,1715104235482,-444.9,0.000126,4]
[326549334,1715104235495,-455.1,0.000126,4]
[326549336,1715104235505,-1800.0,0.000127,4]
[326549339,1715104235519,-2800.0,0.000128,4]
[326549341,1715104235530,-242.48,0.000129,2]
[326549348,1715104235578,-182.11206201,0.000129,2]
[326549351,1715104235589,-876.57808355,0.000129,2]
[326549360,1715104235649,-3700.0,0.000129,4]
[326549377,1715104235734,-5313.3962314,0.000129,2]
[326549380,1715104235746,-151.01,0.0001299,2]
[326549384,1715104235798,-151.01,0.0001299,2]
[326549385,1715104235810,-151.01,0.0001299,2]
[326549391,1715104235893,-151.01,0.0001299,2]
[326549393,1715104235906,-151.01,0.0001299,2]
[326549395,1715104235917,-151.01,0.0001299,2]
[326549398,1715104235935,-151.01,0.0001299,2]
[326549399,1715104235955,-200.09790743,0.00012999,2]
[326549401,1715104235967,-12550.93791279,0.00013,2]
[326549403,1715104235981,-3316.7913667,0.00013,2]
[326549404,1715104235995,-93785.909993,0.00013,2]
[326549447,1715104242496,-1111.90881756,0.00013,2]
[326549451,1715104244199,-81439.92257402,0.00013,2]
[326549456,1715104244213,-1437371.09833989,0.00013,2]
[326549459,1715104244230,-499572.08445014,0.00013,2]
[326549499,1715104254575,-155.0,0.00012999,2]
[326549503,1715104254594,-171240.83390001,0.00013,2]
[326549506,1715104254612,-635.3,0.00013,2]
[326549508,1715104254625,-1268.50432,0.00013,2]
[326549537,1715104933958,776.41201573,9.75e-05,2]
[326549539,1715105037471,159005.0,9.75e-05,2]
[326549540,1715105037499,27323.58798427,9.75e-05,2]
[326549541,1715105037527,3150.2385801,9.75e-05,2]
[326549542,1715105037552,4000.0,9.75e-05,2]
[326549543,1715105037578,4000.0,9.75e-05,2]
[326549544,1715105037604,4000.0,9.75e-05,2]
[326549545,1715105037631,4000.0,9.75e-05,2]
[326549546,1715105037657,4000.0,9.75e-05,2]
[326549547,1715105037683,4000.0,9.75e-05,2]
[326549548,1715105037709,4000.0,9.75e-05,2]
[326549549,1715105037734,4000.0,9.75e-05,2]
[326549550,1715105037761,4000.0,9.75e-05,2]
[326549551,1715105037786,4000.0,9.75e-05,2]
[326549552,1715105037812,4000.0,9.75e-05,2]
[326549553,1715105037837,4000.0,9.75e-05,2]
[326549554,1715105037863,4000.0,9.75e-05,2]
[326549555,1715105037887,4000.0,9.75e-05,2]
[326549556,1715105037912,4000.0,9.75e-05,2]
[326549557,1715105037938,4000.0,9.75e-05,2]
[326549558,1715105135441,1322.61338161,7.313e-05,2]
[326549560,1715105167024,1417.14526655,9.261e-05,2]
[326549561,1715105194815,1260.24135184,9.261e-05,2]
[326549562,1715105194841,115.89637192,9.261e-05,2]
[326549563,1715105199094,3884.10362808,9.261e-05,2]
[326549564,1715105199120,4000.0,9.261e-05,2]
[326549565,1715105239661,600.0,6.946e-05,2]
[326549566,1715105299628,7509.13550586,6.946e-05,2]
[326549567,1715105302261,1376.13772376,6.946e-05,2]
[326549568,1715105320271,1376.13772376,6.946e-05,2]
[326549569,1715105339294,1376.13772376,6.946e-05,2]
[326549570,1715105357421,7206.1044977,6.946e-05,2]
[326549571,1715105360431,1369.6900995,6.946e-05,2]
[326549572,1715105363847,546920.02655659,6.946e-05,2]
[326549573,1715105377795,546920.02655659,6.946e-05,2]
[326549574,1715105383548,-1997.82151721,9.248e-05,2]
[326549575,1715105383573,-155.0,9.249e-05,2]
[326549576,1715105383601,-155.0,9.249e-05,2]
[326549577,1715105383829,1692.17848279,9.247e-05,2]
[326549578,1715105383990,-671.50652162,9.247e-05,2]
[326549579,1715105393799,3328.49347838,6.946e-05,2]
[326549580,1715105393825,4000.0,6.946e-05,2]
[326549581,1715105393849,4000.0,6.946e-05,2]
[326549582,1715105393873,4000.0,6.946e-05,2]
[326549583,1715105393897,4000.0,6.946e-05,2]
[326549584,1715105393921,4000.0,6.946e-05,2]
[326549585,1715105393946,4000.0,6.946e-05,2]
[326549586,1715105393968,4000.0,6.946e-05,2]
[326549587,1715105393992,4000.0,6.946e-05,2]
[326549588,1715105394016,135346.60361248,6.946e-05,2]
[326549589,1715105394044,29091.69135194,6.946e-05,2]
[326549590,1715105399453,405.3612315,6.945e-05,2]
[326549591,1715105434931,-200.64558336,9.247e-05,2]
[326549594,1715105434942,-155.0,9.247e-05,2]
[326549597,1715105434954,-407.60248368,9.248e-05,2]
[326549601,1715105434968,-372.06216743,9.248e-05,2]
[326549607,1715105434982,-2713.46581954,9.248e-05,2]
[326549612,1715105435002,-4271.31667855,9.249e-05,2]
[326549615,1715105435014,-2080.62586209,9.249e-05,2]
[326549620,1715105435034,-1626.72135298,9.249e-05,2]
[326549622,1715105435047,-562.4996314,9.249e-05,2]
[326549625,1715105435069,-10752.87236292,9.249e-05,2]
[326549627,1715105435097,-472.96010763,9.249e-05,2]
[326549630,1715105435117,-1661.1859856,9.249e-05,2]
[326549632,1715105435137,-554.58560878,9.249e-05,2]
[326549635,1715105435151,-1205.85470828,9.249e-05,2]
[326549637,1715105435164,-551.18061135,9.249e-05,2]
[326549639,1715105435174,-303.68010925,9.252e-05,2]
[326549782,1715105533376,-569.20007528,9.252e-05,2]
[326549783,1715105533386,-82.90273474,9.253e-05,2]
[326549784,1715105534097,-450.87611182,9.253e-05,2]
[326549785,1715105534113,-265.84118452,9.259e-05,2]
[326549786,1715105534152,-986.69861366,9.259e-05,2]
[326549787,1715105534204,-38.64485157,9.259e-05,2]
[326549788,1715105534214,-237.48930434,9.748e-05,2]
[326549789,1715105534234,-408.98464469,9.748e-05,2]
[326549790,1715105534245,-67.46580309,9.748e-05,2]
[326549791,1715105534265,-6002.48673465,9.748e-05,2]
[326549792,1715105534279,-155.0,9.748e-05,2]
[326549793,1715105534339,-1325.97003301,9.748e-05,2]
[326549794,1715105534351,-399.72158659,9.75e-05,2]
[326549795,1715105534365,-345.25632558,9.75e-05,2]
[326549796,1715105534375,-155.0481076,9.75e-05,2]
[326549797,1715105534402,-366.89311014,9.75e-05,2]
[326549798,1715105534414,-173.26212603,9.75e-05,2]
[326549799,1715105534436,-155.0,9.75e-05,2]
[326549800,1715105534451,-499.99,9.75e-05,2]
[326549801,1715105534463,-627.25,0.00011789,2]
[326549802,1715105534474,-11382.89,0.00011878,2]
[326549803,1715105534492,-2426.03,0.00011878,2]
[326549804,1715105534527,-150.0,0.00011894,2]
[326549805,1715105534538,-150.0,0.00011926,2]
[326549806,1715105534551,-1353.35121226,0.00012,2]
[326549807,1715105534565,-207.98,0.00012669,2]
[326549808,1715105534584,-400.0,0.000127,4]
[326549809,1715105534595,-207.98,0.00012704,2]
[326549810,1715105534610,-207.98,0.00012739,2]
[326549811,1715105534625,-207.98,0.00012773,2]
[326549812,1715105534634,-900.0,0.000128,4]
[326549813,1715105534647,-248.96983534,0.00012807,2]
[326549814,1715105534665,-207.98,0.00012808,2]
[326549815,1715105534676,-207.98,0.00012843,2]
[326549816,1715105534690,-207.98,0.00012878,2]
[326549817,1715105534701,-150.0,0.00012897,2]
[326549818,1715105534733,-2500.0,0.00012899,2]
[326549819,1715105534747,-154.15827575,0.000129,2]
[326549820,1715105534761,-1400.0,0.000129,4]
[326549821,1715105534772,-207.98,0.00012912,2]
[326549822,1715105534820,-207.98,0.00012947,2]
[326549823,1715105535009,-207.98,0.00012982,2]
[326549824,1715105535021,-2250.0,0.00012985,2]
[326549825,1715105535043,-155.0,0.00012997,2]
[326549826,1715105535056,-711.42259671,0.00012997,2]
[326549827,1715105535069,-155.09581377,0.00012997,2]
[326549828,1715105535106,-2363.68500441,0.00012997,2]
[326549829,1715105535131,-1997.10663451,0.00012997,2]
[326549830,1715105535149,-155.0,0.00012997,2]
[326549831,1715105535168,-156.21566749,0.00012998,2]
[326549832,1715105535180,-155.86350893,0.00012998,2]
[326549833,1715105535191,-235.69826919,0.00012998,2]
[326549834,1715105535202,-155.57909499,0.00012999,2]
[326549835,1715105535217,-8356.39019707,0.00012999,2]
[326549836,1715105535230,-31091.78844,0.00013,2]
[326549837,1715105535245,-15847.10677805,0.00013,2]
[326549838,1715105535268,-703853.11956128,0.00013,2]
[326549839,1715105535308,-342.73,0.00013,2]
[326549840,1715105535321,-89975.95851011,0.00013,2]
[326549841,1715105535335,-124942.17844957,0.00013,2]
[326549842,1715105540571,-121905.07184479,0.00013,2]
[326549843,1715105540583,-5262.72225175,0.00013,2]
[326549844,1715105540598,-125.93759092,0.00013,2]
[326549845,1715105540617,-298.53572696,0.00013,2]
[326549846,1715105540633,-123.32755329,0.00013,2]
[326549847,1715105540647,-309.80715671,0.00013,2]
[326549848,1715105540666,-207.98,0.00013017,2]
[326549849,1715105540688,-207.98,0.00013051,2]
[326549850,1715105540724,-491.69284329,0.00013053,2]
[326549851,1715105540761,-771.31715671,0.00013053,2]
[326549852,1715105540783,-207.98,0.00013086,2]
[326549853,1715105540796,-207.98,0.00013121,2]
[326549854,1715105540822,-207.98,0.00013156,2]
[326549855,1715105540834,-207.98,0.0001319,2]
[326549856,1715105540846,-207.98,0.00013225,2]
[326549857,1715105540862,-207.98,0.0001326,2]
[326549858,1715105540872,-207.98,0.00013295,2]
[326549859,1715105540912,-20.33542123,0.00013329,2]
[326549860,1715105540942,-187.64457877,0.00013329,2]
[326549861,1715105540956,-500.0,0.00013399,2]
[326549862,1715105540970,-500.0,0.00013699,2]
[326549863,1715105540991,-250.0,0.00013904,2]
[326549864,1715105541001,-16244.7,0.0001397,2]
[326549865,1715105541018,-210.0,0.00014187,2]
[326549866,1715105541036,-468.75,0.00014415,2]
[326549867,1715105541073,-412.81,0.0001449,2]
[326549868,1715105541097,-188.19,0.00014522,2]
[326549869,1715105541107,-200.0,0.00014798,2]
[326549870,1715105541119,-618.22068598,0.00015,2]
[326549871,1715105541130,-229.95,0.00015032,2]
[326549872,1715105541163,-154.15827572,0.00015403,2]
[326549873,1715105541174,-151.082,0.00016305,2]
[326549874,1715105541193,-153.43583716,0.00016399,2]
[326549875,1715105541204,-815.96,0.00016579,2]
[326549876,1715105541214,-16244.7,0.0001671,2]
[326549877,1715105541242,-412.85,0.0001688,2]
[326549878,1715105541254,-799.0,0.000173,2]
[326549879,1715105541265,-154.15827572,0.00017907,2]
[326549880,1715105541283,-433.13472,0.00018,2]
[326549881,1715105541295,-1746.5453426,0.00018485,2]
[326549882,1715105541333,-815.96,0.00018651,2]
[326549883,1715105541343,-164.29587601,0.00018846,2]
[326549884,1715105541374,-1900.0,0.000189,6]
[326549885,1715105541389,-173.77436797,0.00019078,2]
[326549886,1715105541400,-1677.99331487,0.00019078,2]
[326549887,1715105541425,-902.13,0.00019178,2]
[326549888,1715105541435,-500.0,0.00019178,2]
[326549889,1715105541445,-500.0,0.00019178,2]
[326549890,1715105541476,-151.0,0.00019178,2]
[326549891,1715105541501,-500.0,0.00019178,2]
[326549892,1715105541511,-500.0,0.00019178,2]
[326549893,1715105541525,-500.0,0.00019178,2]
[326549894,1715105541542,-500.0,0.00019178,2]
[326549895,1715105541553,-964.26,0.00019178,2]
[326549896,1715105541570,-156.40644268,0.00019178,2]
[326549897,1715105541596,-500.0,0.00019178,2]
[326549898,1715105541606,-500.0,0.00019178,2]
[326549899,1715105541618,-500.0,0.00019178,2]
[326549900,1715105541629,-712.97,0.00019178,2]
[326549901,1715105541640,-500.0,0.00019178,2]
[326549902,1715105541650,-500.0,0.00019178,2]
[326549903,1715105541661,-500.0,0.00019178,2]
[326549904,1715105541672,-500.0,0.00019178,2]
[326549905,1715105541686,-500.0,0.00019178,2]
[326549906,1715105541705,-500.0,0.00019178,2]
[326549907,1715105541716,-527.92879819,0.00019178,2]
[326549908,1715105541730,-500.0,0.00019178,2]
[326549909,1715105541745,-500.0,0.00019178,2]
[326549910,1715105541763,-500.0,0.00019178,2]
[326549911,1715105541785,-500.0,0.00019178,2]
[326549912,1715105541804,-500.0,0.00019178,2]
[326549913,1715105541826,-500.0,0.00019178,2]
[326549914,1715105541840,-500.0,0.00019178,2]
[326549915,1715105541851,-500.0,0.00019178,2]
[326549916,1715105541864,-500.0,0.00019178,2]
[326549917,1715105541910,-759.45,0.00019178,2]
[326549918,1715105541921,-500.0,0.00019178,2]
[326549919,1715105541932,-696.64,0.00019178,2]
[326549920,1715105541946,-500.0,0.00019178,2]
[326549921,1715105541957,-500.0,0.00019178,2]
[326549922,1715105541980,-191.96097673,0.00019178,2]
[326549923,1715105541991,-749.43,0.00019178,2]
[326549924,1715105542001,-509.35265015,0.00019178,2]
[326549925,1715105542014,-500.0,0.00019178,2]
[326549926,1715105542026,-500.0,0.00019178,2]
[326549927,1715105542057,-992.5,0.00019178,2]
[326549928,1715105542070,-500.0,0.00019178,2]
[326549929,1715105542080,-500.0,0.00019178,2]
[326549930,1715105542091,-500.0,0.00019178,2]
[326549931,1715105542101,-500.0,0.00019178,2]
[326549932,1715105542112,-500.0,0.00019178,2]
[326549933,1715105542178,-500.0,0.00019178,2]
[326549934,1715105542217,-500.0,0.00019178,2]
[326549935,1715105542235,-500.0,0.00019178,2]
[326549936,1715105542247,-500.0,0.00019178,2]
[326549937,1715105542261,-1147.18,0.00019178,2]
[326549938,1715105542273,-891.13,0.00019178,2]
[326549939,1715105542283,-500.0,0.00019178,2]
[326549940,1715105542295,-156.9344948,0.00019178,2]
[326549941,1715105542310,-500.0,0.00019178,2]
[326549942,1715105542322,-513.23059893,0.00019178,2]
[326549943,1715105542370,-500.0,0.00019178,2]
[326549944,1715105542396,-652.58,0.00019178,2]
[326549945,1715105542407,-714.55,0.00019178,2]
[326549946,1715105542420,-1542.46,0.00019178,2]
[326549947,1715105542460,-590.41,0.00019178,2]
[326549948,1715105542485,-500.0,0.00019178,2]
[326549949,1715105542497,-957.15,0.00019178,2]
[326549950,1715105542508,-500.0,0.00019178,2]
[326549951,1715105542520,-500.0,0.00019178,2]
[326549952,1715105542538,-500.0,0.00019178,2]
[326549953,1715105542550,-500.0,0.00019178,2]
[326549954,1715105542581,-500.0,0.00019178,2]
[326549955,1715105542602,-500.0,0.00019178,2]
[326549956,1715105542613,-909.47,0.00019178,2]
[326549957,1715105542623,-500.0,0.00019178,2]
[326549958,1715105542635,-619.98,0.00019178,2]
[326549959,1715105542656,-600.34,0.00019178,2]
[326549960,1715105542666,-500.0,0.00019178,2]
[326549961,1715105542677,-500.0,0.00019178,2]
[326549962,1715105542687,-500.0,0.00019178,2]
[326549963,1715105542706,-500.0,0.00019178,2]
[326549964,1715105542721,-512.88,0.00019178,2]
[326549965,1715105542743,-500.0,0.00019178,2]
[326549966,1715105542759,-500.0,0.00019178,2]
[326549967,1715105542771,-502.72,0.00019178,2]
[326549968,1715105542798,-500.0,0.00019178,2]
[326549969,1715105542864,-500.0,0.00019178,2]
[326549970,1715105542875,-500.0,0.00019178,2]
[326549971,1715105542893,-500.0,0.00019178,2]
[326549972,1715105542917,-608.4,0.00019178,2]
[326549973,1715105542953,-1234.34,0.00019178,2]
[326549974,1715105542965,-775.54,0.00019178,2]
[326549975,1715105542985,-744.29,0.00019178,2]
[326549976,1715105542996,-635.25,0.00019178,2]
[326549977,1715105543006,-500.0,0.00019178,2]
[326549978,1715105543017,-504.13023475,0.00019178,2]
[326549979,1715105543031,-675.56,0.00019178,2]
[326549980,1715105543043,-947.66,0.00019178,2]
[326549981,1715105543054,-500.0,0.00019178,2]
[326549982,1715105543065,-996.04,0.00019178,2]
[326549983,1715105543082,-500.0,0.00019178,2]
[326549984,1715105543093,-500.0,0.00019178,2]
[326549985,1715105543107,-500.0,0.00019178,2]
[326549986,1715105543149,-500.0,0.00019178,2]
[326549987,1715105543159,-2194.28,0.00019178,2]
[326549988,1715105543170,-500.0,0.00019178,2]
[326549989,1715105543181,-500.0,0.00019178,2]
[326549990,1715105543209,-500.0,0.00019178,2]
[326549991,1715105543234,-500.0,0.00019178,2]
[326549992,1715105543256,-603.04,0.00019178,2]
[326549993,1715105543268,-1659.65,0.00019178,2]
[326549994,1715105543282,-500.0,0.00019178,2]
[326549995,1715105543295,-983.79,0.00019178,2]
[326549996,1715105543309,-500.0,0.00019178,2]
[326549997,1715105543340,-880.18,0.00019178,2]
[326549998,1715105543369,-1117.76,0.00019178,2]
[326549999,1715105543379,-500.0,0.00019178,2]
[326550000,1715105543390,-617.76,0.00019178,2]
[326550001,1715105543440,-500.0,0.00019178,2]
[326550002,1715105543451,-1567.91,0.00019178,2]
[326550003,1715105543463,-666.96,0.00019178,2]
[326550004,1715105543475,-500.0,0.00019178,2]
[326550005,1715105543493,-500.0,0.00019178,2]
[326550006,1715105543509,-500.0,0.00019178,2]
[326550007,1715105543522,-2152.69,0.00019178,2]
[326550008,1715105543556,-506.28435327,0.00019178,2]
[326550009,1715105543569,-500.0,0.00019178,2]
[326550010,1715105543580,-500.0,0.00019178,2]
[326550011,1715105543591,-604.85,0.00019178,2]
[326550012,1715105543609,-896.53,0.00019178,2]
[326550013,1715105543624,-500.0,0.00019178,2]
[326550014,1715105543639,-500.0,0.00019178,2]
[326550015,1715105543657,-437.61221658,0.00019178,2]
[326550016,1715105543669,-1115.16,0.00019178,2]
[326550017,1715105543679,-500.0,0.00019178,2]
[326550018,1715105543744,-500.0,0.00019178,2]
[326550019,1715105543755,-506.74108953,0.00019178,2]
[326550020,1715105543765,-500.0,0.00019178,2]
[326550021,1715105543777,-622.4,0.00019178,2]
[326550022,1715105543803,-512.98270138,0.00019178,2]
[326550023,1715105543826,-500.0,0.00019178,2]
[326550024,1715105543839,-500.0,0.00019178,2]
[326550025,1715105543850,-1145.35,0.00019178,2]
[326550026,1715105543859,-2862.89,0.00019178,2]
[326550027,1715105543871,-938.24,0.00019178,2]
[326550028,1715105543882,-500.0,0.00019178,2]
[326550029,1715105543898,-500.0,0.00019178,2]
[326550030,1715105543910,-500.0,0.00019178,2]
[326550031,1715105543920,-500.0,0.00019178,2]
[326550032,1715105543930,-500.0,0.00019178,2]
[326550033,1715105543941,-917.06,0.00019178,2]
[326550034,1715105543951,-501.99,0.00019178,2]
[326550035,1715105543961,-500.0,0.00019178,2]
[326550036,1715105543971,-500.0,0.00019178,2]
[326550037,1715105543981,-599.9,0.00019178,2]
[326550038,1715105544000,-500.0,0.00019178,2]
[326550039,1715105544011,-500.0,0.00019178,2]
[326550040,1715105544021,-663.53,0.00019178,2]
[326550041,1715105544045,-783.84,0.00019178,2]
[326550042,1715105544060,-500.0,0.00019178,2]
[326550043,1715105544072,-500.0,0.00019178,2]
[326550044,1715105544083,-500.0,0.00019178,2]
[326550045,1715105544094,-500.0,0.00019178,2]
[326550046,1715105544105,-654.08,0.00019178,2]
[326550047,1715105544125,-633.11,0.00019178,2]
[326550048,1715105544145,-679.25,0.00019178,2]
[326550049,1715105544162,-500.0,0.00019178,2]
[326550050,1715105544181,-500.0,0.00019178,2]
[326550051,1715105544196,-720.33,0.00019178,2]
[326550052,1715105544211,-770.79,0.00019178,2]
[326550053,1715105544221,-500.0,0.00019178,2]
[326550054,1715105544232,-729.57,0.00019178,2]
[326550055,1715105544249,-1458.07,0.00019178,2]
[326550056,1715105544259,-1206.99,0.00019178,2]
[326550057,1715105544269,-500.0,0.00019178,2]
[326550058,1715105544295,-500.0,0.00019178,2]
[326550059,1715105544305,-500.0,0.00019178,2]
[326550060,1715105544315,-901.99,0.00019178,2]
[326550061,1715105544326,-2291.75,0.00019178,2]
[326550062,1715105544365,-500.0,0.00019178,2]
[326550063,1715105544382,-786.7,0.00019178,2]
[326550064,1715105544412,-874.1,0.00019178,2]
[326550065,1715105544422,-500.0,0.00019178,2]
[326550066,1715105544456,-1498.69,0.00019178,2]
[326550067,1715105544472,-1025.17,0.00019178,2]
[326550068,1715105544486,-500.0,0.00019178,2]
[326550069,1715105544508,-500.0,0.00019178,2]
[326550070,1715105544525,-500.0,0.00019178,2]
[326550071,1715105544554,-500.0,0.00019178,2]
[326550072,1715105544570,-500.0,0.00019178,2]
[326550073,1715105544581,-1119.86,0.00019178,2]
[326550074,1715105544592,-866.47,0.00019178,2]
[326550075,1715105544618,-500.0,0.00019178,2]
[326550076,1715105544630,-500.0,0.00019178,2]
[326550077,1715105544641,-500.0,0.00019178,2]
[326550078,1715105544652,-850.08,0.00019178,2]
[326550079,1715105544669,-789.26,0.00019178,2]
[326550080,1715105544713,-500.0,0.00019178,2]
[326550081,1715105544742,-500.0,0.00019178,2]
[326550082,1715105544753,-500.0,0.00019178,2]
[326550083,1715105544764,-500.0,0.00019178,2]
[326550084,1715105544774,-500.0,0.00019178,2]
[326550085,1715105544787,-507.38139515,0.00019178,2]
[326550086,1715105544805,-500.0,0.00019178,2]
[326550087,1715105544816,-500.0,0.00019178,2]
[326550088,1715105544830,-500.0,0.00019178,2]
[326550089,1715105544853,-1246.83,0.00019178,2]